bitfinex/quotes_BTCUSD_20221001
["timestamp","ask_amount","ask_price","bid_price","bid_amount"]
[1664596869432,0.87157039,19423.0,19422.0,0.10760743]
[1664596869666,1.12387576,19423.0,19422.0,0.10760743]
[1664596869882,1.18446279,19423.0,19422.0,0.10760743]
[1664596870012,1.78446279,19423.0,19422.0,0.10760743]
[1664596870217,1.18446279,19423.0,19422.0,0.03360743]
[1664596870441,0.05,19421.0,19417.0,1.32624004]
[1664596870666,0.05,19421.0,19417.0,0.90579257]
[1664596870667,0.05,19418.0,19417.0,0.90579257]
[1664596870892,0.7,19417.0,19412.0,0.1]
[1664596871119,0.05,19413.0,19412.0,0.61173144]
[1664596871352,0.20483933,19413.0,19412.0,0.72492753]
[1664596871590,0.10099685,19416.0,19414.0,0.19170985]
[1664596871817,0.10099685,19417.0,19415.0,0.357578]
[1664596872068,0.357578,19416.0,19414.0,0.70344129]
[1664596872283,0.00534863,19416.0,19415.0,0.51173144]
[1664596872536,0.00534863,19416.0,19415.0,1.20706705]
[1664596872537,0.13400163,19416.0,19415.0,1.20706705]
[1664596872775,0.13400163,19416.0,19415.0,0.51173144]
[1664596873005,0.13400163,19416.0,19415.0,0.59173144]
[1664596874358,0.13400163,19416.0,19415.0,0.51173144]
[1664596874606,0.82113133,19416.0,19414.0,0.69494377]
[1664596874849,0.00534863,19415.0,19414.0,0.69494377]
[1664596875072,0.00534863,19415.0,19414.0,0.75994377]
[1664596875499,0.00534863,19415.0,19414.0,1.11752177]
[1664596875717,0.00534863,19415.0,19414.0,0.75994377]
[1664596876696,0.00534863,19415.0,19414.0,0.69494377]
[1664596877132,0.00534863,19415.0,19414.0,0.77494377]
[1664596878275,0.00534863,19415.0,19414.0,1.05252177]
[1664596878523,0.00534863,19415.0,19414.0,0.69494377]
[1664596879257,0.00534863,19415.0,19414.0,0.76594377]
[1664596880401,0.00534863,19415.0,19414.0,0.69494377]
[1664596881245,0.00534863,19415.0,19414.0,0.76594377]
[1664596882514,0.00534863,19415.0,19414.0,0.69494377]
[1664596883147,0.00534863,19415.0,19414.0,0.25421233]
[1664596883360,0.03315199,19415.0,19414.0,0.25421233]
[1664596884327,0.00534863,19415.0,19414.0,0.25421233]
[1664596884528,0.00534863,19415.0,19414.0,0.18321233]
[1664596885188,0.00534863,19415.0,19414.0,0.25421233]
[1664596886471,0.00534863,19415.0,19414.0,0.18321233]
[1664596887248,0.00534863,19415.0,19414.0,0.24821233]
[1664596888453,0.00534863,19415.0,19414.0,0.18321233]
[1664596889346,0.00534863,19415.0,19414.0,0.24821233]
[1664596890243,0.40359549,19415.0,19414.0,0.065]
[1664596890469,0.40359549,19415.0,19411.0,1.93989819]
[1664596890666,0.59617896,19415.0,19412.0,1.51173144]
[1664596890933,0.385991,19415.0,19413.0,0.51173144]
[1664596892092,0.36417474,19414.0,19413.0,0.51165371]
[1664596892307,0.05534863,19414.0,19412.0,0.58073144]
[1664596892624,0.307336,19414.0,19412.0,0.51173144]
[1664596892851,0.39681552,19414.0,19412.0,0.51173144]
[1664596893081,0.34681552,19414.0,19412.0,0.51173144]
[1664596893301,0.34681552,19414.0,19412.0,0.57573144]
[1664596893528,0.257336,19414.0,19412.0,0.57573144]
[1664596894006,0.00534863,19413.0,19412.0,0.57573144]
[1664596894900,0.00534863,19413.0,19412.0,0.51173144]
[1664596895134,0.02094675,19413.0,19412.0,0.51173144]
[1664596895355,0.02094675,19413.0,19412.0,0.93630944]
[1664596896055,0.02094675,19413.0,19412.0,0.57873144]
[1664596896282,0.02094675,19413.0,19412.0,0.93630944]
[1664596896523,0.02094675,19413.0,19412.0,0.86930944]
[1664596897115,0.02094675,19413.0,19412.0,0.93630944]
[1664596897336,0.02094675,19413.0,19412.0,0.57873144]
[1664596898194,0.02094675,19413.0,19412.0,0.93630944]
[1664596898471,0.02094675,19413.0,19412.0,0.86930944]
[1664596899123,0.02094631,19413.0,19412.0,0.51173144]
[1664596899340,0.02094631,19413.0,19412.0,0.93630944]
[1664596899556,0.02094631,19413.0,19412.0,0.57873144]
[1664596899785,0.02094631,19413.0,19412.0,0.93630944]
[1664596900213,0.02094631,19413.0,19412.0,0.57873144]
[1664596900461,0.02094631,19413.0,19412.0,0.51173144]
[1664596900673,0.02094631,19413.0,19412.0,0.86930944]
[1664596901063,0.02087488,19413.0,19412.0,0.51173144]
[1664596901273,0.02087488,19413.0,19412.0,0.57873144]
[1664596901489,0.02087488,19413.0,19412.0,0.93630944]
[1664596901906,0.02087488,19413.0,19412.0,0.57873144]
[1664596902090,0.02087488,19413.0,19412.0,0.93630944]
[1664596902529,0.02087488,19413.0,19412.0,0.86930944]
[1664596902950,0.02087488,19413.0,19412.0,0.51173144]
[1664596903191,0.02087488,19413.0,19412.0,0.93630944]
[1664596903409,0.02087488,19413.0,19412.0,0.57873144]
[1664596903815,0.02087488,19413.0,19412.0,0.93630944]
[1664596904022,0.02087488,19413.0,19412.0,0.57873144]
[1664596904396,0.02087488,19413.0,19412.0,0.51173144]
[1664596905445,0.02087488,19413.0,19412.0,0.57873144]
[1664596906080,0.02087488,19413.0,19412.0,0.93630944]
[1664596906293,0.02087488,19413.0,19412.0,0.57873144]
[1664596906527,0.02087488,19413.0,19412.0,0.51173144]
[1664596907400,0.02087488,19413.0,19412.0,0.57873144]
[1664596907579,0.02087488,19413.0,19412.0,0.93630944]
[1664596907818,0.02087488,19413.0,19412.0,0.57873144]
[1664596908515,0.02087488,19413.0,19412.0,0.51173144]
[1664596909367,0.02087488,19413.0,19412.0,0.57873144]
[1664596910564,0.02087488,19413.0,19412.0,0.51173144]
[1664596911692,0.02087488,19413.0,19412.0,0.86930944]
[1664596912140,0.02087488,19413.0,19412.0,0.51173144]
[1664596913969,0.02087488,19413.0,19412.0,0.86930944]
[1664596914195,0.02087488,19413.0,19412.0,0.51173144]
[1664596914333,0.02087488,19413.0,19412.0,0.64573144]
[1664596915300,0.02087488,19413.0,19412.0,0.71273144]
[1664596915518,0.02087488,19413.0,19412.0,1.07030944]
[1664596915742,0.02087488,19413.0,19412.0,0.71273144]
[1664596916645,0.02087488,19413.0,19412.0,0.86930944]
[1664596916856,0.02087488,19413.0,19412.0,0.51173144]
[1664596917068,0.02087488,19413.0,19412.0,0.86930944]
[1664596917303,0.02087488,19413.0,19412.0,0.57873144]
[1664596918155,0.02087488,19413.0,19412.0,0.93630944]
[1664596918378,0.02087488,19413.0,19412.0,0.57873144]
[1664596918588,0.02087488,19413.0,19412.0,0.51173144]
[1664596919390,0.02087488,19413.0,19412.0,0.57873144]
[1664596919715,0.02087488,19413.0,19412.0,0.93630944]
[1664596919926,0.02087488,19413.0,19412.0,0.57873144]
[1664596920611,0.02087488,19413.0,19412.0,0.86930944]
[1664596920821,0.02087488,19413.0,19412.0,0.51173144]
[1664596921456,0.02087488,19413.0,19412.0,0.57873144]
[1664596922656,0.02087488,19413.0,19412.0,0.51173144]
[1664596923333,0.02087488,19413.0,19412.0,0.58073144]
[1664596923516,0.02087488,19413.0,19412.0,0.93830944]
[1664596923911,0.02087488,19413.0,19412.0,0.58073144]
[1664596924571,0.02087488,19413.0,19412.0,0.51173144]
[1664596925511,0.02087488,19413.0,19412.0,0.58073144]
[1664596925799,0.02087488,19413.0,19412.0,0.93830944]
[1664596926037,0.02087488,19413.0,19412.0,0.58073144]
[1664596926599,0.02087488,19413.0,19412.0,0.86930944]
[1664596926790,0.02087488,19413.0,19412.0,0.51173144]
[1664596927012,0.02087488,19413.0,19412.0,0.86930944]
[1664596927459,0.02087488,19413.0,19412.0,0.93830944]
[1664596927680,0.02087488,19413.0,19412.0,0.58073144]
[1664596928636,0.02087488,19413.0,19412.0,0.51173144]
[1664596929026,0.02087488,19413.0,19412.0,0.86930944]
[1664596929274,0.02087488,19413.0,19412.0,0.51173144]
[1664596929581,0.02087488,19413.0,19412.0,0.58073144]
[1664596929992,0.02087488,19413.0,19412.0,0.93830944]
[1664596930147,0.02087488,19413.0,19412.0,0.58073144]
[1664596930543,0.02087488,19413.0,19412.0,0.51173144]
[1664596931413,0.02087488,19413.0,19412.0,0.58073144]
[1664596931863,0.02087488,19413.0,19412.0,0.93830944]
[1664596932568,0.02087488,19413.0,19412.0,0.51173144]
[1664596933564,0.02087488,19413.0,19412.0,0.93830944]
[1664596933766,0.02087488,19413.0,19412.0,1.48073144]
[1664596934776,0.02087488,19413.0,19412.0,1.41173144]
[1664596934995,0.04039874,19415.0,19412.0,1.41173144]
[1664596935273,0.44126634,19415.0,19412.0,1.54051644]
[1664596935443,0.357578,19414.0,19412.0,1.60951644]
[1664596935836,0.128799,19414.0,19412.0,1.60951644]
[1664596936066,0.01795922,19413.0,19412.0,1.60951644]
[1664596936291,0.01795922,19413.0,19412.0,0.58073144]
[1664596936730,0.52633976,19414.0,19412.0,0.51173144]
[1664596936860,0.52633976,19414.0,19412.0,0.64051544]
[1664596937400,0.52633976,19414.0,19412.0,0.96408744]
[1664596938003,0.05,19413.0,19412.0,0.57773144]
[1664596938243,0.52633976,19414.0,19413.0,0.357578]
[1664596938466,0.26900376,19414.0,19412.0,0.70651744]
[1664596938704,0.26900376,19414.0,19413.0,0.357578]
[1664596938918,0.26900376,19414.0,19412.0,0.64051744]
[1664596939149,0.39767076,19414.0,19412.0,0.64051744]
[1664596939369,0.39767076,19414.0,19413.0,0.357578]
[1664596939580,0.39767076,19414.0,19412.0,0.70651744]
[1664596940023,0.7101691,19414.0,19412.0,0.70651744]
[1664596940237,0.7101691,19414.0,19412.0,0.57773144]
[1664596940453,0.39767076,19414.0,19412.0,0.57773144]
[1664596940673,0.39767076,19414.0,19412.0,0.51173144]
[1664596940896,0.40342829,19414.0,19413.0,0.357578]
[1664596941113,0.58725963,19414.0,19412.0,0.51173144]
[1664596941373,0.27476129,19414.0,19413.0,0.067]
[1664596941807,0.58725963,19414.0,19413.0,0.067]
[1664596942713,0.27476129,19414.0,19412.0,0.51173144]
[1664596942937,0.71592663,19414.0,19412.0,0.51173144]
[1664596943175,0.40342829,19414.0,19412.0,0.51173144]
[1664596943652,0.05,19413.0,19412.0,0.57773144]
[1664596944928,0.05,19413.0,19412.0,0.51173144]
[1664596945623,0.05,19413.0,19412.0,0.93830944]
[1664596945753,0.05,19413.0,19412.0,0.58073144]
[1664596946615,0.05,19413.0,19412.0,0.51173144]
[1664596947629,0.53209629,19414.0,19412.0,1.96709544]
[1664596947855,0.53209629,19414.0,19413.0,0.357578]
[1664596948081,0.27476129,19414.0,19412.0,1.48073144]
[1664596948522,0.27476129,19414.0,19413.0,0.357578]
[1664596948742,0.27476129,19414.0,19412.0,1.79808744]
[1664596948946,0.27476129,19414.0,19412.0,1.41173144]
[1664596949280,0.40342929,19414.0,19412.0,1.79808744]
[1664596949512,0.40342929,19414.0,19412.0,1.86408744]
[1664596950714,0.40342929,19414.0,19412.0,1.79808744]
[1664596950942,0.71592763,19414.0,19412.0,1.79808744]
[1664596951149,0.40342929,19414.0,19412.0,1.79808744]
[1664596951592,0.40342929,19414.0,19412.0,1.86408744]
[1664596952784,0.40342929,19414.0,19412.0,1.79808744]
[1664596953688,0.40342929,19414.0,19412.0,1.86408744]
[1664596954351,0.357578,19413.0,19412.0,1.86408744]
[1664596954581,0.53209829,19414.0,19412.0,1.86408744]
[1664596954814,0.53209829,19414.0,19412.0,1.79808744]
[1664596955274,0.53209829,19414.0,19412.0,1.79799312]
[1664596955660,0.53209829,19414.0,19412.0,1.87599312]
[1664596956303,0.05,19413.0,19412.0,1.87599312]
[1664596956769,0.05,19413.0,19412.0,1.79799312]
[1664596957577,0.05,19413.0,19412.0,1.87799312]
[1664596958804,0.05,19413.0,19412.0,1.79799312]
[1664596959678,0.05,19413.0,19412.0,1.87799312]
[1664596960325,0.05,19413.0,19412.0,2.13968315]
[1664596960504,0.40329929,19414.0,19412.0,2.49726115]
[1664596960714,0.40329929,19414.0,19413.0,0.357578]
[1664596960997,0.27463029,19414.0,19412.0,1.79799312]
[1664596961148,0.14596229,19414.0,19413.0,0.357578]
[1664596961365,0.14596229,19414.0,19412.0,1.79799312]
[1664596961576,0.27463129,19414.0,19412.0,1.48963712]
[1664596962090,0.27463129,19414.0,19413.0,0.357578]
[1664596962303,0.14596229,19414.0,19412.0,1.48963712]
[1664596962567,0.27463129,19414.0,19412.0,1.87599312]
[1664596962778,0.27463129,19414.0,19412.0,1.79799312]
[1664596963016,0.27463129,19414.0,19412.0,2.05168315]
[1664596963315,0.14596229,19414.0,19413.0,0.357578]
[1664596963541,0.14596229,19414.0,19412.0,1.48963712]
[1664596964132,0.14596229,19414.0,19412.0,1.87599312]
[1664596964828,0.14596229,19414.0,19412.0,1.79799312]
[1664596965050,0.27463029,19414.0,19412.0,1.79799312]
[1664596965657,0.27463029,19414.0,19413.0,0.357578]
[1664596965836,0.14596229,19414.0,19413.0,0.357578]
[1664596966072,0.14596229,19414.0,19412.0,1.87599312]
[1664596966872,0.14596229,19414.0,19412.0,1.79799312]
[1664596967082,0.27463029,19414.0,19412.0,1.79799312]
[1664596967833,0.27463029,19414.0,19412.0,1.87599312]
[1664596968991,0.27463029,19414.0,19413.0,0.357578]
[1664596969205,0.45846063,19414.0,19412.0,1.79799312]
[1664596969425,0.14596229,19414.0,19412.0,0.51163712]
[1664596969661,0.14596229,19414.0,19413.0,0.08]
[1664596969908,0.45846063,19414.0,19413.0,0.08]
[1664596970448,0.14596229,19414.0,19413.0,0.08]
[1664596970964,0.14596229,19414.0,19412.0,0.89799312]
[1664596971575,0.14596229,19414.0,19412.0,0.51163712]
[1664596971809,0.14596229,19414.0,19413.0,0.357578]
[1664596971997,0.45846063,19414.0,19412.0,0.97599312]
[1664596972377,0.14596229,19414.0,19413.0,0.357578]
[1664596972543,0.14596229,19414.0,19412.0,0.97599312]
[1664596972757,0.14596229,19414.0,19412.0,0.51163712]
[1664596973205,0.27463029,19414.0,19413.0,0.357578]
[1664596973580,0.14596229,19414.0,19412.0,0.51163712]
[1664596973802,0.27463029,19414.0,19413.0,0.357578]
[1664596974010,0.14596229,19414.0,19412.0,0.58963712]
[1664596974224,0.27463029,19414.0,19412.0,0.97599312]
[1664596974976,0.27463029,19414.0,19412.0,0.89799312]
[1664596975347,0.14596229,19414.0,19413.0,0.347578]
[1664596975642,0.14596229,19414.0,19413.0,0.51173144]
[1664596975643,0.50354029,19414.0,19413.0,0.51173144]
[1664596975870,0.50354029,19414.0,19413.0,1.05260752]
[1664596975871,0.14596329,19414.0,19413.0,1.05260752]
[1664596976085,0.14596329,19414.0,19413.0,1.29944056]
[1664596977725,0.14596329,19414.0,19413.0,1.37944056]
[1664596978821,0.14596329,19414.0,19413.0,1.29944056]
[1664596979735,0.14596329,19414.0,19413.0,1.02183156]
[1664596979957,0.14596329,19414.0,19413.0,0.77499852]
[1664596980400,0.14596329,19414.0,19413.0,1.13260752]
[1664596980548,0.14596329,19414.0,19413.0,0.77499852]
[1664596980916,0.14596329,19414.0,19413.0,1.05260752]
[1664596981048,0.14596329,19414.0,19413.0,0.69499852]
[1664596981712,0.14596329,19414.0,19413.0,0.77499852]
[1664596982901,0.14596329,19414.0,19413.0,1.05260752]
[1664596983070,0.14596329,19414.0,19413.0,0.69499852]
[1664596983669,0.14596329,19414.0,19413.0,0.77499852]
[1664596984548,0.50357229,19414.0,19413.0,0.77499852]
[1664596984791,0.14596329,19414.0,19413.0,0.77499852]
[1664596984986,0.14596329,19414.0,19413.0,0.69499852]
[1664596985440,0.50357229,19414.0,19413.0,0.69499852]
[1664596985647,0.50357229,19414.0,19413.0,0.77499852]
[1664596985648,0.14596329,19414.0,19413.0,0.77499852]
[1664596986800,0.14596329,19414.0,19413.0,1.13260752]
[1664596987015,0.14596329,19414.0,19413.0,0.69499852]
[1664596987765,0.14596329,19414.0,19413.0,0.77499852]
[1664596989061,0.14596329,19414.0,19413.0,0.69499852]
[1664596989730,0.14596329,19414.0,19413.0,0.77499852]
[1664596991012,0.14596329,19414.0,19413.0,0.69499852]
[1664596991774,0.14596329,19414.0,19413.0,0.77499852]
[1664596991938,0.14596329,19414.0,19413.0,1.13260752]
[1664596992152,0.14596329,19414.0,19413.0,0.62087608]
[1664596992389,0.14596329,19414.0,19413.0,0.26326708]
[1664596992660,0.45846163,19414.0,19413.0,0.26326708]
[1664596992875,0.14596329,19414.0,19413.0,0.26326708]
[1664596993151,0.14596329,19414.0,19413.0,0.18326708]
[1664596993514,0.14596329,19414.0,19413.0,0.17826708]
[1664596993728,0.14596329,19414.0,19413.0,0.61187608]
[1664596994312,0.14596329,19414.0,19413.0,0.25426708]
[1664596994988,0.14596329,19414.0,19413.0,0.17826708]
[1664596995622,0.14596329,19414.0,19413.0,0.25426708]
[1664596996692,0.14596329,19414.0,19413.0,0.61187608]
[1664596996905,0.14596329,19414.0,19413.0,0.17826708]
[1664596997334,0.14596329,19414.0,19413.0,0.53587608]
[1664596997541,0.14596329,19414.0,19413.0,0.17826708]
[1664596997806,0.14596329,19414.0,19413.0,0.25426708]
[1664596998977,0.14596329,19414.0,19413.0,0.17826708]
[1664596999180,0.50357229,19414.0,19413.0,0.17826708]
[1664596999316,0.14596329,19414.0,19413.0,0.17826708]
[1664596999540,0.14596329,19414.0,19413.0,0.53587608]
[1664596999754,0.14596329,19414.0,19413.0,0.25426708]
[1664597000897,0.14596329,19414.0,19413.0,0.53587608]
[1664597001110,0.14596329,19414.0,19413.0,0.17826708]
[1664597001681,0.14596329,19414.0,19413.0,0.25426708]
[1664597003141,0.14596329,19414.0,19413.0,0.17826708]
[1664597003753,0.14596329,19414.0,19413.0,0.25426708]
[1664597004857,0.14596329,19414.0,19413.0,0.53587608]
[1664597005070,0.14596329,19414.0,19413.0,0.17826708]
[1664597005771,0.14596329,19414.0,19413.0,0.25426708]
[1664597005987,0.14596329,19414.0,19413.0,0.61187608]
[1664597006222,0.14596329,19414.0,19413.0,0.25426708]
[1664597006668,0.14596329,19414.0,19413.0,0.61187608]
[1664597006886,0.14596329,19414.0,19413.0,0.17826708]
[1664597007719,0.14596329,19414.0,19413.0,0.25426708]
[1664597008758,0.14596329,19414.0,19413.0,0.61187608]
[1664597008974,0.14596329,19414.0,19413.0,0.17826708]
[1664597009805,0.14596329,19414.0,19413.0,0.25426708]
[1664597010930,0.14596329,19414.0,19413.0,0.53587608]
[1664597011292,0.14596329,19414.0,19413.0,0.17826708]
[1664597011511,0.14596329,19414.0,19413.0,0.53587608]
[1664597011735,0.14596329,19414.0,19413.0,0.25426708]
[1664597013040,0.14596329,19414.0,19413.0,0.53587608]
[1664597013332,0.14596329,19414.0,19413.0,0.17826708]
[1664597013565,0.14596329,19414.0,19413.0,0.53587608]
[1664597013817,0.14596329,19414.0,19413.0,0.25426708]
[1664597014035,0.14596329,19414.0,19413.0,0.61187608]
[1664597014276,0.14596329,19414.0,19413.0,0.25426708]
[1664597015175,0.14596329,19414.0,19413.0,0.17826708]
[1664597015842,0.14596329,19414.0,19413.0,0.61187608]
[1664597016059,0.14596329,19414.0,19413.0,0.25426708]
[1664597016956,0.14596329,19414.0,19413.0,0.17826708]
[1664597017910,0.14596329,19414.0,19413.0,0.61187608]
[1664597018133,0.14596329,19414.0,19413.0,0.25426708]
[1664597018340,0.14596329,19414.0,19413.0,0.00426708]
[1664597018892,0.14596329,19414.0,19413.0,0.87360752]
[1664597019103,0.14596329,19414.0,19413.0,1.33638494]
[1664597019845,0.14596329,19414.0,19413.0,1.04077594]
[1664597021128,0.14596329,19414.0,19413.0,0.97877594]
[1664597021712,0.14596329,19414.0,19413.0,1.39838494]
[1664597021937,0.14596329,19414.0,19413.0,1.04077594]
[1664597022140,2.9434332,19414.0,19413.0,0.77326549]
[1664597022350,3.3010422,19414.0,19413.0,0.77326549]
[1664597022528,3.3010422,19414.0,19413.0,1.13087449]
[1664597022529,0.01729429,19414.0,19413.0,1.13087449]
[1664597022968,0.01729429,19414.0,19413.0,0.71126549]
[1664597023755,0.01729429,19414.0,19413.0,1.13087449]
[1664597023977,0.01729429,19414.0,19413.0,0.77326549]
[1664597025010,0.20328029,19415.0,19413.0,0.71126549]
[1664597025217,0.20328029,19415.0,19413.0,1.61271349]
[1664597025428,0.20328029,19415.0,19414.0,0.357609]
[1664597025672,0.20328029,19415.0,19413.0,1.61271349]
[1664597025888,0.20328029,19415.0,19413.0,0.76326549]
[1664597026063,0.20328029,19415.0,19413.0,1.66471349]
[1664597027102,0.20328029,19415.0,19413.0,1.61271349]
[1664597027581,0.20328029,19415.0,19414.0,0.357609]
[1664597027927,0.20328029,19415.0,19413.0,1.66471349]
[1664597029034,0.20328029,19415.0,19413.0,0.71126549]
[1664597029480,0.20328029,19415.0,19414.0,0.357609]
[1664597029663,0.51386701,19415.0,19413.0,1.61271349]
[1664597029883,0.20328029,19415.0,19413.0,0.76326549]
[1664597030220,0.20328029,19415.0,19414.0,0.357609]
[1664597030450,0.20328029,19415.0,19413.0,2.56471349]
[1664597030678,0.20328029,19415.0,19413.0,2.89845927]
[1664597030896,0.20328029,19415.0,19413.0,2.84645927]
[1664597031573,0.20328029,19415.0,19414.0,0.51173144]
[1664597032877,0.20328029,19415.0,19414.0,0.86934044]
[1664597033320,0.20328029,19415.0,19414.0,0.51173144]
[1664597033807,0.07461829,19415.0,19414.0,0.55973144]
[1664597034020,0.07461829,19415.0,19414.0,0.82080279]
[1664597034549,0.128656,19416.0,19415.0,1.757609]
[1664597034767,0.10099685,19420.0,19415.0,3.16934044]
[1664597034768,0.04039874,19420.0,19415.0,3.16934044]
[1664597034984,0.04039874,19420.0,19416.0,1.21173144]
[1664597034985,0.257262,19419.0,19416.0,1.21173144]
[1664597035240,0.257262,19419.0,19417.0,1.53413658]
[1664597035458,0.257262,19419.0,19418.0,0.51173144]
[1664597037764,0.614871,19419.0,19418.0,0.51173144]
[1664597037997,0.257262,19419.0,19418.0,0.51873144]
[1664597039120,0.257262,19419.0,19418.0,0.51173144]
[1664597040033,0.257262,19419.0,19418.0,0.66002778]
[1664597040247,0.614871,19419.0,19418.0,0.66002778]
[1664597040599,0.257262,19419.0,19418.0,0.66002778]
[1664597040821,0.614871,19419.0,19418.0,0.66002778]
[1664597041038,0.257262,19419.0,19418.0,0.65302778]
[1664597041886,0.614871,19419.0,19418.0,0.66002778]
[1664597042306,0.257262,19419.0,19418.0,0.66002778]
[1664597043082,0.257262,19419.0,19418.0,0.65302778]
[1664597043657,0.614871,19419.0,19418.0,0.51173144]
[1664597043947,0.614871,19419.0,19418.0,0.51873144]
[1664597044921,0.257262,19419.0,19418.0,0.51873144]
[1664597045141,0.614871,19419.0,19418.0,0.51173144]
[1664597045584,0.257262,19419.0,19418.0,0.51173144]
[1664597045798,0.614871,19419.0,19418.0,0.51173144]
[1664597046012,0.257262,19419.0,19418.0,0.51873144]
[1664597046229,0.614871,19419.0,19418.0,0.51873144]
[1664597046500,0.257262,19419.0,19418.0,0.51873144]
[1664597046726,0.614871,19419.0,19418.0,0.51873144]
[1664597046943,0.257262,19419.0,19418.0,0.51873144]
[1664597047164,0.257262,19419.0,19418.0,0.51173144]
[1664597048084,0.257262,19419.0,19418.0,0.51873144]
[1664597049182,0.257262,19419.0,19418.0,0.51173144]
[1664597049419,0.257262,19419.0,19418.0,0.65302778]
[1664597049875,0.257262,19419.0,19418.0,0.66002778]
[1664597050758,0.257262,19419.0,19418.0,0.51873144]
[1664597051191,0.257262,19419.0,19418.0,0.51173144]
[1664597051872,0.257262,19419.0,19418.0,0.51873144]
[1664597053256,0.257262,19419.0,19418.0,0.51173144]
[1664597053964,0.257262,19419.0,19418.0,0.51873144]
[1664597055574,0.257262,19419.0,19418.0,0.51866944]
[1664597055822,0.257262,19419.0,19418.0,0.51166944]
[1664597056026,0.257262,19419.0,19418.0,0.51866944]
[1664597057261,0.257262,19419.0,19418.0,0.51166944]
[1664597057867,0.257262,19419.0,19418.0,0.51866944]
[1664597059150,0.257262,19419.0,19418.0,0.51166944]
[1664597059912,0.257262,19419.0,19418.0,0.51866944]
[1664597061116,0.257262,19419.0,19418.0,0.51166944]
[1664597061977,0.257262,19419.0,19418.0,0.51866944]
[1664597063206,0.257262,19419.0,19418.0,0.86927844]
[1664597063684,0.257262,19419.0,19418.0,0.51166944]
[1664597064115,0.257262,19419.0,19418.0,0.51866944]
[1664597065530,0.257262,19419.0,19418.0,0.51166944]
[1664597065972,0.257262,19419.0,19418.0,0.51866944]
[1664597067433,0.257262,19419.0,19418.0,0.51166944]
[1664597067968,0.257262,19419.0,19418.0,0.51866944]
[1664597069262,0.257262,19419.0,19418.0,0.86927844]
[1664597069564,0.257262,19419.0,19418.0,0.51166944]
[1664597070006,0.257262,19419.0,19418.0,0.51866944]
[1664597071359,0.257262,19419.0,19418.0,0.51166944]
[1664597072063,0.257262,19419.0,19418.0,0.51866944]
[1664597073410,0.257262,19419.0,19418.0,0.51166944]
[1664597074088,0.257262,19419.0,19418.0,0.51866944]
[1664597074568,0.614871,19419.0,19418.0,0.51866944]
[1664597075021,0.257262,19419.0,19418.0,0.51866944]
[1664597075246,0.257262,19419.0,19418.0,0.51166944]
[1664597075906,0.614871,19419.0,19418.0,0.51166944]
[1664597076122,0.257262,19419.0,19418.0,0.51866944]
[1664597076345,0.614871,19419.0,19418.0,0.51866944]
[1664597076673,0.257262,19419.0,19418.0,0.51866944]
[1664597077259,0.257262,19419.0,19418.0,0.51166944]
[1664597077445,0.614871,19419.0,19418.0,0.51166944]
[1664597077657,0.257262,19419.0,19418.0,0.51166944]
[1664597078138,0.257262,19419.0,19418.0,0.51866944]
[1664597079126,0.614871,19419.0,19418.0,0.51866944]
[1664597079350,0.614871,19419.0,19418.0,0.51166944]
[1664597079907,0.257262,19419.0,19418.0,0.51166944]
[1664597080120,0.614871,19419.0,19418.0,0.51866944]
[1664597081266,0.614871,19419.0,19418.0,0.51166944]
[1664597081479,0.257262,19419.0,19418.0,0.51166944]
[1664597081810,0.614871,19419.0,19418.0,0.51166944]
[1664597082044,0.257262,19419.0,19418.0,0.51866944]
[1664597082740,0.614871,19419.0,19418.0,0.51866944]
[1664597082955,0.257262,19419.0,19418.0,0.51866944]
[1664597083376,0.257262,19419.0,19418.0,0.51166944]
[1664597084092,0.257262,19419.0,19418.0,0.51866944]
[1664597085059,0.614871,19419.0,19418.0,0.51866944]
[1664597085277,0.614871,19419.0,19418.0,0.51166944]
[1664597085278,0.257262,19419.0,19418.0,0.51166944]
[1664597085454,0.614871,19419.0,19418.0,0.51166944]
[1664597085671,0.257262,19419.0,19418.0,0.51166944]
[1664597086123,0.257262,19419.0,19418.0,0.51866944]
[1664597087340,0.257262,19419.0,19418.0,0.51166944]
[1664597088011,0.257262,19419.0,19418.0,0.51866944]
[1664597089464,0.257262,19419.0,19418.0,0.51166944]
[1664597090122,0.257262,19419.0,19418.0,0.51866944]
[1664597091234,0.257262,19419.0,19418.0,0.51166944]
[1664597092119,0.257262,19419.0,19418.0,0.51866944]
[1664597093449,0.257262,19419.0,19418.0,0.51166944]
[1664597094066,0.614871,19419.0,19418.0,0.51166944]
[1664597094220,0.614871,19419.0,19418.0,0.51866944]
[1664597094864,0.257262,19419.0,19418.0,0.51866944]
[1664597095082,0.614871,19419.0,19418.0,0.51866944]
[1664597095327,0.614871,19419.0,19418.0,0.51166944]
[1664597095758,0.257262,19419.0,19418.0,0.51166944]
[1664597096196,0.257262,19419.0,19418.0,0.51866944]
[1664597097589,0.614871,19419.0,19418.0,0.51166944]
[1664597097806,0.257262,19419.0,19418.0,0.51166944]
[1664597097995,0.614871,19419.0,19418.0,0.51166944]
[1664597098239,0.614871,19419.0,19418.0,0.51866944]
[1664597098449,0.257262,19419.0,19418.0,0.51866944]
[1664597098665,0.614871,19419.0,19418.0,0.51866944]
[1664597098883,0.257262,19419.0,19418.0,0.51866944]
[1664597099098,0.614871,19419.0,19418.0,0.51866944]
[1664597099259,0.257262,19419.0,19418.0,0.51866944]
[1664597099477,0.257262,19419.0,19418.0,0.51166944]
[1664597100150,0.614871,19419.0,19418.0,0.51166944]
[1664597100394,0.257262,19419.0,19418.0,0.51866944]
[1664597101076,0.614871,19419.0,19418.0,0.51866944]
[1664597101534,0.614871,19419.0,19418.0,0.51166944]
[1664597101758,0.257262,19419.0,19418.0,0.51166944]
[1664597102203,0.27983867,19419.0,19418.0,0.51866944]
[1664597103536,0.27983867,19419.0,19418.0,0.51166944]
[1664597104212,0.27983867,19419.0,19418.0,0.51866944]
[1664597105505,0.63744767,19419.0,19418.0,0.51166944]
[1664597105713,0.27983867,19419.0,19418.0,0.51166944]
[1664597106165,0.27983867,19419.0,19418.0,0.51866944]
[1664597107524,0.27983867,19419.0,19418.0,0.51166944]
[1664597108325,0.27983867,19419.0,19418.0,0.51866944]
[1664597109223,0.38339254,19419.0,19418.0,0.51866944]
[1664597109378,0.38339254,19419.0,19418.0,0.51166944]
[1664597110263,0.38339254,19419.0,19418.0,0.51866944]
[1664597111544,0.38339254,19419.0,19418.0,0.51166944]
[1664597112175,0.38339254,19419.0,19418.0,0.51866944]
[1664597113453,0.38339254,19419.0,19418.0,0.51166944]
[1664597114260,0.38339254,19419.0,19418.0,0.51866944]
[1664597115512,0.38339254,19419.0,19418.0,0.51166944]
[1664597116175,0.38339254,19419.0,19418.0,0.51866944]
[1664597117497,0.38339254,19419.0,19418.0,0.51166944]
[1664597118369,0.38339254,19419.0,19418.0,0.51866944]
[1664597119487,0.38339254,19419.0,19418.0,0.51166944]
[1664597120471,0.38339254,19419.0,19418.0,0.51866944]